[Event "Slovakian-ch Youth 2022"]
[Site "Lubovna"]
[Date "2022.05.26"]
[Round "7.9"]
[White "Petrek, Dominik"]
[Black "Kuna, Patrik"]
[Result "0-1"]
[ECO "D30"]
[WhiteElo "2110"]
[BlackElo "1811"]
[Annotator "TA"]
[PlyCount "68"]
[EventDate "2022.05.22"]
[EventCountry "SVK"]
[SourceTitle "playchess.com"]
[Source "ChessBase"]
[SourceQuality "1"]
[TimeControl "40/5400+30:1800+30"]

{[%evp 10,68,6,-1,5,-24,0,-31,0,0,8,-8,0,-27,-37,-52,-45,-62,-31,-37,-33,-44,-41,-44,-29,-31,-43,-61,-32,-118,-72,-104,-104,-186,-129,-116,-127,-128,-131,-178,-114,-332,-233,-458,-451,-422,-448,-418,-368,-361,-356,-568,-436,-578,-584,-525,-509,-792,-320,-964,-800]} 1. d4 {[%emt 0:00:42]} d5 {[%emt 0:00:10]} 2. Nf3 {[%emt 0:00:27]} Nf6 {[%emt 0:00:11]} 3. c4 {[%emt 0:00:07]} e6 {[%emt 0:00:13]} 4. e3 {[%emt 0:00:26]} Be7 {[%emt 0:00:24]} 5. Nbd2 {[%emt 0:00:24]} O-O {[%emt 0:00:26]} 6. Bd3 {[%emt 0:00:48]} b6 {[%emt 0:06:54] D30: Queen's Gambit Declined: Systems without Nc3.} 7. Qc2 {[%emt 0:01:54]} Bb7 {[%emt 0:01:16]} 8. O-O {[%emt 0:00:51]} Nbd7 {[%emt 0:00:09] Black is slightly better.} 9. b3 {[%emt 0:04:34]} c5 {[%emt 0:04:22]} 10. Bb2 {[%emt 0:03:59][%cal Bc1b2,Bb2d4,Bd4e5][%mdl 32]} h6 {[%emt 0:01:13]} 11. e4 {[%emt 0:01:58]} dxc4 {[%emt 0:07:44] [#]} 12. Bxc4 $146 {[%emt 0:13:03]} ({Predecessor:} 12. bxc4 cxd4 13. e5 Ne8 14. Bxd4 Nc5 15. Bxc5 Bxc5 16. Be4 Qc7 17. Bxb7 Qxb7 18. Ne4 {½-½ (27) Campbell,B (2240)-Chu,C Toronto 1995}) 12... cxd4 {[%emt 0:01:29]} 13. Bxd4 {[%emt 0:01:17]} Nc5 {[%emt 0:03:51][%cal Rc5e4]} (13... Rc8 $5 {[%cal Rb6b5]} 14. e5 Nh5 $15) 14. Rfe1 {[%emt 0:20:57]} Rc8 {[%emt 0:05:12][%cal Ob6b5]} 15. Rad1 {[%emt 0:08:22]} Qc7 {[%emt 0:04:49]} 16. Be5 {[%emt 0:02:58]} Qd7 {[%emt 0:08:13]} 17. Qb1 {[%emt 0:12:17]} Rfd8 {[%emt 0:06:53]} 18. a4 {[%emt 0:04:07]} a6 {[%emt 0:04:18] Prevents Bb5.} 19. Nf1 {[%emt 0:03:44]} ({Better is} 19. Bf1 $15) 19... Qe8 {[%emt 0:00:05]} (19... Qc6 $142 20. Nd4 Qe8 21. Bxf6 Bxf6) 20. Bxf6 {[%emt 0:01:28] [#] Hoping for Rxd8.} Bxf6 {[%emt 0:00:11]} 21. Ng3 {[%emt 0:00:37]} (21. Rxd8 $17 {is a better defense.} Rxd8 22. Qc2) 21... b5 {[%emt 0:04:38]} (21... Rxd1 $19 22. Qxd1 b5 23. axb5 axb5) 22. axb5 $17 {[%emt 0:00:08]} axb5 {[%emt 0:01:01]} 23. Bf1 {[%emt 0:00:10]} Bc3 {[%emt 0:01:41] A strong pair of Bishops.} 24. Re3 {[%emt 0:02:18]} (24. Rxd8 $17 Qxd8 25. Rd1) 24... b4 {[%emt 0:02:09]} ({Black should try} 24... Rxd1 $19 25. Qxd1 b4) 25. Bc4 $2 {[%emt 0:00:33] Loses the game.} (25. Rxd8 $17 Qxd8 26. Ne2) 25... Ra8 {[%emt 0:05:29] [#] And now ...Rxd1+ would win.} 26. Rxd8 {[%emt 0:02:05]} (26. Rf1) 26... Qxd8 $19 {[%emt 0:00:20]} (26... Rxd8 $2 {is the wrong capture.} 27. Qc2 $19) 27. Qc2 {[%emt 0:00:14]} Ra1+ {[%emt 0:01:40]} 28. Nf1 {[%emt 0:00:15]} Qd1 {[%emt 0:01:37]} 29. Qxd1 {[%emt 0:01:22]} Rxd1 {[%emt 0:00:06]} 30. e5 {[%emt 0:01:38]} (30. Re2 {was necessary.}) 30... Rb1 {[%emt 0:01:23]} 31. Re2 {[%emt 0:00:56]} Nxb3 {[%emt 0:01:59] Strongly threatening ...Bxf3.} 32. Ra2 {[%emt 0:00:09]} Bd5 {[%emt 0:11:51]} 33. Bd3 {[%emt 0:03:03]} (33. Bxd5 $142 exd5 34. g4) 33... Ra1 {[%emt 0:01:41]} (33... Rd1 $142 34. Be2 Rc1) 34. Rc2 {[%emt 0:00:42]} (34. Rxa1 Bxa1 35. Ne3) 34... Nc5 {[%emt 0:00:33] Weighted Error Value: White=0.74/Black=0.40} 0-1